fUST/lending_fUST_20250906
["ID","MTS","AMOUNT","RATE_DAILY","PERIOD"]
[383726565,1757101858102,-480.0,0.00014246,2]
[383726566,1757101858112,-480.0,0.00014246,2]
[383726567,1757101858121,-480.0,0.00014246,2]
[383726568,1757101858131,-151.0,0.00014246,2]
[383726569,1757101858140,-151.0,0.00014246,2]
[383726570,1757101858149,-151.0,0.00014246,2]
[383726571,1757101858159,-556.91007838,0.00014246,2]
[383726572,1757101858169,-151.0,0.00014246,2]
[383726573,1757101858180,-480.0,0.00014246,2]
[383726574,1757101858189,-480.0,0.00014246,2]
[383726575,1757101858198,-480.0,0.00014246,2]
[383726576,1757101858208,-480.0,0.00014246,2]
[383726577,1757101858217,-287.794535,0.00014246,2]
[383726578,1757101858227,-287.794535,0.00014246,2]
[383726579,1757101858237,-480.0,0.00014246,2]
[383726580,1757101858247,-480.0,0.00014246,2]
[383726581,1757101858257,-660.2,0.00014246,2]
[383726582,1757101858267,-287.794535,0.00014246,2]
[383726583,1757101858276,-480.0,0.00014246,2]
[383726584,1757101858287,-287.794535,0.00014246,2]
[383726585,1757101858296,-480.0,0.00014246,2]
[383726586,1757101858306,-480.0,0.00014246,2]
[383726587,1757101858315,-480.0,0.00014246,2]
[383726588,1757101858325,-480.0,0.00014246,2]
[383726589,1757101858335,-480.0,0.00014246,2]
[383726590,1757101858344,-816.220083,0.00014246,2]
[383726591,1757101858354,-816.220083,0.00014246,2]
[383726592,1757101858363,-480.0,0.00014246,2]
[383726593,1757101858372,-716.59,0.00014246,2]
[383726594,1757101858382,-816.220083,0.00014246,2]
[383726595,1757101858391,-480.0,0.00014246,2]
[383726596,1757101858401,-480.0,0.00014246,2]
[383726597,1757101858411,-480.0,0.00014246,2]
[383726598,1757101858421,-816.220083,0.00014246,2]
[383726599,1757101858431,-710.75,0.00014246,2]
[383726600,1757101858440,-941.48,0.00014246,2]
[383726601,1757101858450,-480.0,0.00014246,2]
[383726602,1757101858459,-480.0,0.00014246,2]
[383726603,1757101858470,-480.0,0.00014246,2]
[383726604,1757101858480,-480.0,0.00014246,2]
[383726605,1757101858489,-480.0,0.00014246,2]
[383726606,1757101858499,-647.92,0.00014246,2]
[383726607,1757101858509,-863.89,0.00014246,2]
[383726608,1757101858519,-480.0,0.00014246,2]
[383726609,1757101858529,-1511.01,0.00014246,2]
[383726610,1757101858539,-480.0,0.00014246,2]
[383726611,1757101858548,-480.0,0.00014246,2]
[383726612,1757101858557,-480.0,0.00014246,2]
[383726613,1757101858567,-480.0,0.00014246,2]
[383726614,1757101858576,-480.0,0.00014246,2]
[383726615,1757101858587,-480.0,0.00014246,2]
[383726616,1757101858597,-6994.66,0.00014246,2]
[383726617,1757101858608,-736.18,0.00014246,2]
[383726618,1757101858618,-480.0,0.00014246,2]
[383726619,1757101858628,-480.0,0.00014246,2]
[383726620,1757101858637,-480.0,0.00014246,2]
[383726621,1757101858647,-151.0,0.00014246,2]
[383726622,1757101858656,-480.0,0.00014246,2]
[383726623,1757101858673,-480.0,0.00014246,2]
[383726624,1757101858683,-221.593833,0.00014246,2]
[383726625,1757101858693,-151.0,0.00014246,2]
[383726626,1757101858704,-480.0,0.00014246,2]
[383726627,1757101858714,-221.593833,0.00014246,2]
[383726628,1757101858724,-151.0,0.00014246,2]
[383726629,1757101858734,-221.593833,0.00014246,2]
[383726630,1757101858745,-480.0,0.00014246,2]
[383726631,1757101858755,-480.0,0.00014246,2]
[383726632,1757101858766,-221.593833,0.00014246,2]
[383726633,1757101858776,-222.960267,0.00014246,2]
[383726634,1757101858787,-1582.54,0.00014246,2]
[383726635,1757101858796,-480.0,0.00014246,2]
[383726636,1757101858806,-480.0,0.00014246,2]
[383726637,1757101858816,-222.960267,0.00014246,2]
[383726638,1757101858825,-480.0,0.00014246,2]
[383726639,1757101858836,-222.960267,0.00014246,2]
[383726640,1757101858846,-683.75,0.00014246,2]
[383726641,1757101858856,-205.39,0.00014246,2]
[383726642,1757101858876,-222.960267,0.00014246,2]
[383726643,1757101858885,-2501.89,0.00014246,2]
[383726644,1757101858895,-314.776465,0.00014246,2]
[383726645,1757101858905,-480.0,0.00014246,2]
[383726646,1757101858916,-314.776465,0.00014246,2]
[383726647,1757101858925,-480.0,0.00014246,2]
[383726648,1757101858935,-314.776465,0.00014246,2]
[383726649,1757101858944,-1033.19,0.00014246,2]
[383726650,1757101858955,-1211.51,0.00014246,2]
[383726651,1757101858964,-314.776465,0.00014246,2]
[383726652,1757101858973,-480.0,0.00014246,2]
[383726653,1757101858983,-480.0,0.00014246,2]
[383726654,1757101858993,-1469.18,0.00014246,2]
[383726655,1757101859002,-480.0,0.00014246,2]
[383726656,1757101859011,-480.0,0.00014246,2]
[383726657,1757101859020,-151.0,0.00014246,2]
[383726658,1757101859030,-528.99,0.00014246,2]
[383726659,1757101859039,-480.0,0.00014246,2]
[383726660,1757101859049,-480.0,0.00014246,2]
[383726661,1757101859059,-842.6,0.00014246,2]
[383726662,1757101859068,-660.5,0.00014246,2]
[383726663,1757101859078,-480.0,0.00014246,2]
[383726664,1757101859087,-480.0,0.00014246,2]
[383726665,1757101859097,-480.0,0.00014246,2]
[383726666,1757101859107,-480.0,0.00014246,2]
[383726667,1757101859116,-740.24,0.00014246,2]
[383726668,1757101859126,-480.0,0.00014246,2]
[383726669,1757101859135,-480.0,0.00014246,2]
[383726670,1757101859144,-787.931978,0.00014246,2]
[383726671,1757101859154,-787.931978,0.00014246,2]
[383726672,1757101859163,-4426.73,0.00014246,2]
[383726673,1757101859173,-787.931978,0.00014246,2]
[383726674,1757101859183,-480.0,0.00014246,2]
[383726675,1757101859192,-787.931968,0.00014246,2]
[383726676,1757101859201,-480.0,0.00014246,2]
[383726677,1757101859210,-254.94335,0.00014246,2]
[383726678,1757101859219,-480.0,0.00014246,2]
[383726679,1757101859228,-480.0,0.00014246,2]
[383726680,1757101859237,-254.94335,0.00014246,2]
[383726681,1757101859247,-480.0,0.00014246,2]
[383726682,1757101859258,-480.0,0.00014246,2]
[383726683,1757101859269,-254.94335,0.00014246,2]
[383726684,1757101859280,-480.0,0.00014246,2]
[383726685,1757101859291,-254.943358,0.00014246,2]
[383726686,1757101859301,-635.41,0.00014246,2]
[383726687,1757101859312,-480.0,0.00014246,2]
[383726688,1757101859321,-480.0,0.00014246,2]
[383726689,1757101859331,-2382.72,0.00014246,2]
[383726690,1757101859443,-162.6,0.00014246,2]
[383726691,1757101859455,-1286.92,0.00014246,2]
[383726692,1757101859465,-2354.05,0.00014246,2]
[383726693,1757101859475,-698.77,0.00014246,2]
[383726694,1757101859485,-480.0,0.00014246,2]
[383726695,1757101859495,-480.0,0.00014246,2]
[383726696,1757101859505,-480.0,0.00014246,2]
[383726697,1757101859515,-480.0,0.00014246,2]
[383726698,1757101859525,-715.04,0.00014246,2]
[383726699,1757101859535,-571.87,0.00014246,2]
[383726700,1757101859544,-370.74,0.00014246,2]
[383726701,1757101859553,-480.0,0.00014246,2]
[383726702,1757101859563,-480.0,0.00014246,2]
[383726703,1757101859572,-480.0,0.00014246,2]
[383726704,1757101859583,-480.0,0.00014246,2]
[383726705,1757101859593,-580.2,0.00014246,2]
[383726706,1757101859603,-613.64525266,0.00014246,2]
[383726707,1757101859612,-337.15,0.00014246,2]
[383726708,1757101859622,-1302.09,0.00014246,2]
[383726709,1757101859632,-480.0,0.00014246,2]
[383726710,1757101859641,-576.43,0.00014246,2]
[383726711,1757101859650,-480.0,0.00014246,2]
[383726712,1757101859659,-848.15,0.00014246,2]
[383726713,1757101859669,-482.65139801,0.00014246,2]
[383726714,1757101859679,-480.0,0.00014246,2]
[383726715,1757101859689,-542.38,0.00014246,2]
[383726716,1757101859698,-480.0,0.00014246,2]
[383726717,1757101859708,-480.0,0.00014246,2]
[383726718,1757101859718,-489.224412,0.00014246,2]
[383726719,1757101859727,-520.15207074,0.00014246,2]
[383726720,1757101859735,-18.77978225,0.00014246,2]
[383726721,1757101859929,-461.22021775,0.00014246,2]
[383726722,1757101859939,-527.83,0.00014246,2]
[383726723,1757101859948,-480.0,0.00014246,2]
[383726724,1757101859957,-480.0,0.00014246,2]
[383726725,1757101859966,-480.0,0.00014246,2]
[383726726,1757101859975,-480.0,0.00014246,2]
[383726727,1757101859984,-1106.8,0.00014246,2]
[383726728,1757101859993,-185.39,0.00014246,2]
[383726729,1757101860002,-480.0,0.00014246,2]
[383726730,1757101860012,-480.0,0.00014246,2]
[383726731,1757101860022,-480.0,0.00014246,2]
[383726732,1757101860032,-372.217419,0.00014246,2]
[383726733,1757101860042,-2052.72,0.00014246,2]
[383726734,1757101860052,-480.0,0.00014246,2]
[383726735,1757101860062,-480.0,0.00014246,2]
[383726736,1757101860072,-480.0,0.00014246,2]
[383726737,1757101860081,-372.217419,0.00014246,2]
[383726738,1757101860091,-794.96,0.00014246,2]
[383726739,1757101860100,-480.0,0.00014246,2]
[383726740,1757101860110,-480.0,0.00014246,2]
[383726741,1757101860119,-372.217419,0.00014246,2]
[383726742,1757101860128,-197.6,0.00014246,2]
[383726743,1757101860137,-372.217411,0.00014246,2]
[383726744,1757101860146,-624.98,0.00014246,2]
[383726745,1757101860158,-480.0,0.00014246,2]
[383726746,1757101860168,-480.0,0.00014246,2]
[383726747,1757101860177,-480.0,0.00014246,2]
[383726748,1757101860187,-480.0,0.00014246,2]
[383726749,1757101860196,-480.0,0.00014246,2]
[383726750,1757101860205,-480.0,0.00014246,2]
[383726751,1757101860214,-480.0,0.00014246,2]
[383726752,1757101860224,-3974.31,0.00014246,2]
[383726753,1757101860232,-480.0,0.00014246,2]
[383726754,1757101860242,-480.0,0.00014246,2]
[383726755,1757101860250,-480.0,0.00014246,2]
[383726756,1757101860260,-480.0,0.00014246,2]
[383726757,1757101860269,-480.0,0.00014246,2]
[383726758,1757101860278,-1444.2,0.00014246,2]
[383726759,1757101860287,-480.0,0.00014246,2]
[383726760,1757101860295,-480.0,0.00014246,2]
[383726761,1757101860304,-480.0,0.00014246,2]
[383726762,1757101860313,-306.1,0.00014246,2]
[383726763,1757101860322,-970.85,0.00014246,2]
[383726764,1757101860333,-353.88336,0.00014246,2]
[383726765,1757101860342,-480.0,0.00014246,2]
[383726766,1757101860351,-482.08901058,0.00014246,2]
[383726767,1757101860360,-353.88336,0.00014246,2]
[383726768,1757101860368,-2043.46,0.00014246,2]
[383726769,1757101860378,-480.0,0.00014246,2]
[383726770,1757101860387,-1596.6,0.00014246,2]
[383726771,1757101860395,-215.28,0.00014246,2]
[383726772,1757101860404,-826.75,0.00014246,2]
[383726773,1757101860413,-4418.53,0.00014246,2]
[383726774,1757101860422,-480.0,0.00014246,2]
[383726775,1757101860431,-658.72,0.00014246,2]
[383726776,1757101860440,-480.0,0.00014246,2]
[383726777,1757101860450,-151.0,0.00014246,2]
[383726778,1757101860458,-480.0,0.00014246,2]
[383726779,1757101860467,-480.0,0.00014246,2]
[383726780,1757101860476,-480.0,0.00014246,2]
[383726781,1757101860485,-483.13792894,0.00014246,2]
[383726782,1757101860494,-353.88336,0.00014246,2]
[383726783,1757101860503,-181.6064,0.00014246,2]
[383726784,1757101860512,-353.883362,0.00014246,2]
[383726785,1757101860521,-480.0,0.00014246,2]
[383726786,1757101860530,-482.5152393,0.00014246,2]
[383726787,1757101860539,-480.0,0.00014246,2]
[383726788,1757101860548,-480.0,0.00014246,2]
[383726789,1757101860557,-480.0,0.00014246,2]
[383726790,1757101860566,-480.0,0.00014246,2]
[383726791,1757101860575,-480.0,0.00014246,2]
[383726792,1757101860585,-480.0,0.00014246,2]
[383726793,1757101860595,-480.0,0.00014246,2]
[383726794,1757101860603,-1799.02,0.00014246,2]
[383726795,1757101860613,-2076.717526,0.00014246,2]
[383726796,1757101860623,-480.0,0.00014246,2]
[383726797,1757101860633,-480.0,0.00014246,2]
[383726798,1757101860643,-480.0,0.00014246,2]
[383726799,1757101860653,-2076.717526,0.00014246,2]
[383726800,1757101860662,-480.0,0.00014246,2]
[383726801,1757101860673,-2076.717526,0.00014246,2]
[383726802,1757101860683,-151.0,0.00014246,2]
[383726803,1757101860692,-480.0,0.00014246,2]
[383726804,1757101860703,-421.63150766,0.00014246,2]
[383726805,1757101860713,-500.0,0.00014273,2]
[383726806,1757101860723,-500.0,0.00014273,2]
[383726807,1757101860732,-500.0,0.00014273,2]
[383726808,1757101860742,-500.0,0.00014273,2]
[383726809,1757101860751,-500.0,0.00014273,2]
[383726810,1757101860761,-500.0,0.00014273,2]
[383726811,1757101860770,-500.0,0.00014273,2]
[383726812,1757101860780,-500.0,0.00014273,2]
[383726813,1757101860789,-57551.5427511,0.00014283,2]
[383726814,1757101860799,-160.0,0.00014456,2]
[383726815,1757101860808,-160.0,0.00014456,2]
[383726816,1757101860818,-160.0,0.00014456,2]
[383726817,1757101860827,-160.0,0.00014456,2]
[383726818,1757101860838,-160.0,0.00014456,2]
[383726819,1757101860847,-160.0,0.00014456,2]
[383726820,1757101860857,-160.0,0.00014456,2]
[383726821,1757101860867,-160.0,0.00014456,2]
[383726822,1757101860876,-203.18701864,0.00014456,2]
[383726823,1757101860886,-180.35934831,0.0001452,2]
[383726824,1757101860896,-500.0,0.0001452,2]
[383726825,1757101860903,-157.0,0.0001452,2]
[383726826,1757101860913,-480.0,0.0001452,2]
[383726827,1757101860922,-480.0,0.0001452,2]
[383726828,1757101860932,-482.56071141,0.0001452,2]
[383726829,1757101860942,-480.0,0.0001452,2]
[383726830,1757101860952,-480.0,0.0001452,2]
[383726831,1757101860961,-522.20596089,0.0001452,2]
[383726832,1757101860971,-480.0,0.0001452,2]
[383726833,1757101860980,-480.0,0.0001452,2]
[383726834,1757101860990,-480.0,0.0001452,2]
[383726835,1757101860999,-480.0,0.0001452,2]
[383726836,1757101861009,-215.69761432,0.0001452,2]
[383726837,1757101861022,-480.0,0.0001452,2]
[383726838,1757101861032,-786.098118,0.0001452,2]
[383726839,1757101861042,-786.098118,0.0001452,2]
[383726840,1757101861051,-151.0,0.0001452,2]
[383726841,1757101861061,-786.098118,0.0001452,2]
[383726842,1757101861071,-786.098118,0.0001452,2]
[383726843,1757101861081,-746.28,0.0001452,2]
[383726844,1757101861090,-151.0,0.0001452,2]
[383726845,1757101861100,-151.0,0.0001452,2]
[383726846,1757101861110,-151.0,0.0001452,2]
[383726847,1757101861120,-480.0,0.0001452,2]
[383726848,1757101861130,-480.0,0.0001452,2]
[383726849,1757101861139,-151.0,0.0001452,2]
[383726850,1757101861257,-480.0,0.0001452,2]
[383726851,1757101861267,-573.9,0.0001452,2]
[383726852,1757101861277,-672.62,0.0001452,2]
[383726853,1757101861287,-480.0,0.0001452,2]
[383726854,1757101861297,-480.0,0.0001452,2]
[383726855,1757101861307,-480.0,0.0001452,2]
[383726856,1757101861317,-151.0,0.0001452,2]
[383726857,1757101861327,-151.0,0.0001452,2]
[383726858,1757101861340,-160.090856,0.0001452,2]
[383726859,1757101861350,-700.85,0.0001452,2]
[383726860,1757101861359,-480.0,0.0001452,2]
[383726861,1757101861369,-480.0,0.0001452,2]
[383726862,1757101861378,-480.0,0.0001452,2]
[383726863,1757101861388,-480.0,0.0001452,2]
[383726864,1757101861398,-269.16,0.0001452,2]
[383726865,1757101861407,-151.0,0.0001452,2]
[383726866,1757101861417,-480.0,0.0001452,2]
[383726867,1757101861426,-151.0,0.0001452,2]
[383726868,1757101861435,-151.0,0.0001452,2]
[383726869,1757101861445,-480.0,0.0001452,2]
[383726870,1757101861455,-500.0,0.0001452,2]
[383726871,1757101861463,-431.84,0.0001452,2]
[383726872,1757101861473,-480.0,0.0001452,2]
[383726873,1757101861482,-480.0,0.0001452,2]
[383726874,1757101861492,-480.0,0.0001452,2]
[383726875,1757101861501,-480.0,0.0001452,2]
[383726876,1757101861511,-480.0,0.0001452,2]
[383726877,1757101861521,-548.9,0.0001452,2]
[383726878,1757101861531,-480.0,0.0001452,2]
[383726879,1757101861540,-480.0,0.0001452,2]
[383726880,1757101861550,-480.0,0.0001452,2]
[383726881,1757101861559,-216.794929,0.0001452,2]
[383726882,1757101861569,-480.0,0.0001452,2]
[383726883,1757101861578,-480.0,0.0001452,2]
[383726884,1757101861589,-222.41864304,0.0001452,2]
[383726885,1757101861598,-480.0,0.0001452,2]
[383726886,1757101861607,-480.0,0.0001452,2]
[383726887,1757101861617,-480.0,0.0001452,2]
[383726888,1757101861626,-480.0,0.0001452,2]
[383726889,1757101861636,-480.0,0.0001452,2]
[383726890,1757101861645,-245.658344,0.0001452,2]
[383726891,1757101861655,-735.37,0.0001452,2]
[383726892,1757101861665,-245.658344,0.0001452,2]
[383726893,1757101861675,-480.0,0.0001452,2]
[383726894,1757101861685,-245.658344,0.0001452,2]
[383726895,1757101861695,-245.658344,0.0001452,2]
[383726896,1757101861704,-829.65,0.0001452,2]
[383726897,1757101861715,-480.0,0.0001452,2]
[383726898,1757101861725,-480.0,0.0001452,2]
[383726899,1757101861735,-480.0,0.0001452,2]
[383726900,1757101861745,-153.94459,0.0001452,2]
[383726901,1757101861755,-480.0,0.0001452,2]
[383726902,1757101861764,-480.0,0.0001452,2]
[383726903,1757101861773,-480.0,0.0001452,2]
[383726904,1757101861783,-480.0,0.0001452,2]
[383726905,1757101861793,-480.0,0.0001452,2]
[383726906,1757101861802,-480.0,0.0001452,2]
[383726907,1757101861812,-250.3699281,0.0001452,2]
[383726908,1757101861822,-711.0,0.0001452,2]
[383726909,1757101861832,-480.0,0.0001452,2]
[383726910,1757101861841,-480.0,0.0001452,2]
[383726911,1757101861851,-480.0,0.0001452,2]
[383726912,1757101861861,-480.0,0.0001452,2]
[383726913,1757101861871,-376.52082948,0.0001452,2]
[383726914,1757101861880,-480.0,0.0001452,2]
[383726915,1757101861890,-480.0,0.0001452,2]
[383726916,1757101861899,-701.34,0.0001452,2]
[383726917,1757101861909,-480.0,0.0001452,2]
[383726918,1757101861919,-151.0,0.0001452,2]
[383726919,1757101861929,-151.0,0.0001452,2]
[383726920,1757101861938,-480.0,0.0001452,2]
[383726921,1757101861948,-480.0,0.0001452,2]
[383726922,1757101861959,-480.0,0.0001452,2]
[383726923,1757101861968,-480.0,0.0001452,2]
[383726924,1757101861978,-480.0,0.0001452,2]
[383726925,1757101861989,-480.0,0.0001452,2]
[383726926,1757101861999,-176.33,0.0001452,2]
[383726927,1757101862010,-480.0,0.0001452,2]
[383726928,1757101862020,-480.0,0.0001452,2]
[383726929,1757101862030,-339.33066584,0.0001452,2]
[383726930,1757101862040,-480.0,0.0001452,2]
[383726931,1757101862049,-480.0,0.0001452,2]
[383726932,1757101862060,-480.0,0.0001452,2]
[383726933,1757101862070,-660.2,0.0001452,2]
[383726934,1757101862080,-480.0,0.0001452,2]
[383726935,1757101862090,-480.0,0.0001452,2]
[383726936,1757101862099,-480.0,0.0001452,2]
[383726937,1757101862109,-480.15414561,0.0001452,2]
[383726938,1757101862119,-480.0,0.0001452,2]
[383726939,1757101862129,-480.0,0.0001452,2]
[383726940,1757101862139,-716.59,0.0001452,2]
[383726941,1757101862149,-480.0,0.0001452,2]
[383726942,1757101862160,-480.0,0.0001452,2]
[383726943,1757101862170,-544.72,0.0001452,2]
[383726944,1757101862179,-710.75,0.0001452,2]
[383726945,1757101862189,-941.48,0.0001452,2]
[383726946,1757101862198,-480.0,0.0001452,2]
[383726947,1757101862208,-480.0,0.0001452,2]
[383726948,1757101862217,-480.0,0.0001452,2]
[383726949,1757101862228,-480.0,0.0001452,2]
[383726950,1757101862238,-647.92,0.0001452,2]
[383726951,1757101862248,-863.89,0.0001452,2]
[383726952,1757101862257,-1511.01,0.0001452,2]
[383726953,1757101862267,-480.0,0.0001452,2]
[383726954,1757101862276,-480.0,0.0001452,2]
[383726955,1757101862286,-480.0,0.0001452,2]
[383726956,1757101862296,-480.0,0.0001452,2]
[383726957,1757101862306,-480.0,0.0001452,2]
[383726958,1757101862315,-480.0,0.0001452,2]
[383726959,1757101862325,-6994.66,0.0001452,2]
[383726960,1757101862335,-736.18,0.0001452,2]
[383726961,1757101862345,-480.0,0.0001452,2]
[383726962,1757101862354,-325.5466742,0.0001452,2]
[383726963,1757101862363,-180.13176517,0.0001452,2]
[383726964,1757101862373,-151.0,0.0001452,2]
[383726965,1757101862383,-480.0,0.0001452,2]
[383726966,1757101862394,-480.0,0.0001452,2]
[383726967,1757101862404,-151.0,0.0001452,2]
[383726968,1757101862413,-480.0,0.0001452,2]
[383726969,1757101862423,-480.0,0.0001452,2]
[383726970,1757101862433,-1582.54,0.0001452,2]
[383726971,1757101862442,-222.960267,0.0001452,2]
[383726972,1757101862452,-452.47,0.0001452,2]
[383726973,1757101862462,-480.0,0.0001452,2]
[383726974,1757101862471,-222.960267,0.0001452,2]
[383726975,1757101862481,-480.0,0.0001452,2]
[383726976,1757101862489,-683.75,0.0001452,2]
[383726977,1757101862499,-222.960267,0.0001452,2]
[383726978,1757101862509,-222.960271,0.0001452,2]
[383726979,1757101862519,-2501.89,0.0001452,2]
[383726980,1757101862529,-314.776465,0.0001452,2]
[383726981,1757101862539,-480.0,0.0001452,2]
[383726982,1757101862548,-314.776465,0.0001452,2]
[383726983,1757101862558,-480.0,0.0001452,2]
[383726984,1757101862569,-314.776465,0.0001452,2]
[383726985,1757101862579,-1033.19,0.0001452,2]
[383726986,1757101862589,-1211.51,0.0001452,2]
[383726987,1757101862598,-314.776461,0.0001452,2]
[383726988,1757101862608,-394.16065589,0.0001452,2]
[383726989,1757101862617,-480.0,0.0001452,2]
[383726990,1757101862627,-1469.18,0.0001452,2]
[383726991,1757101862636,-480.0,0.0001452,2]
[383726992,1757101862645,-480.0,0.0001452,2]
[383726993,1757101862655,-151.0,0.0001452,2]
[383726994,1757101862664,-528.99,0.0001452,2]
[383726995,1757101862675,-480.0,0.0001452,2]
[383726996,1757101862685,-480.0,0.0001452,2]
[383726997,1757101862694,-842.6,0.0001452,2]
[383726998,1757101862705,-660.5,0.0001452,2]
[383726999,1757101862715,-480.0,0.0001452,2]
[383727000,1757101862724,-480.0,0.0001452,2]
[383727001,1757101862734,-480.0,0.0001452,2]
[383727002,1757101862743,-740.24,0.0001452,2]
[383727003,1757101862752,-480.0,0.0001452,2]
[383727004,1757101862761,-480.0,0.0001452,2]
[383727005,1757101862771,-4426.73,0.0001452,2]
[383727006,1757101862781,-480.0,0.0001452,2]
[383727007,1757101862791,-480.0,0.0001452,2]
[383727008,1757101862800,-480.0,0.0001452,2]
[383727009,1757101862809,-480.0,0.0001452,2]
[383727010,1757101862819,-480.0,0.0001452,2]
[383727011,1757101862828,-480.0,0.0001452,2]
[383727012,1757101862838,-635.41,0.0001452,2]
[383727013,1757101862847,-480.0,0.0001452,2]
[383727014,1757101862857,-480.0,0.0001452,2]
[383727015,1757101862866,-2382.72,0.0001452,2]
[383727016,1757101862876,-1286.92,0.0001452,2]
[383727017,1757101862885,-2354.05,0.0001452,2]
[383727018,1757101862895,-698.77,0.0001452,2]
[383727019,1757101862904,-480.0,0.0001452,2]
[383727020,1757101862915,-715.04,0.0001452,2]
[383727021,1757101862925,-480.0,0.0001452,2]
[383727022,1757101862935,-480.0,0.0001452,2]
[383727023,1757101862946,-480.0,0.0001452,2]
[383727024,1757101862956,-480.0,0.0001452,2]
[383727025,1757101862966,-1302.09,0.0001452,2]
[383727026,1757101863070,-480.92031988,0.0001452,2]
[383727027,1757101863081,-576.43,0.0001452,2]
[383727028,1757101863093,-480.0,0.0001452,2]
[383727029,1757101863103,-848.15,0.0001452,2]
[383727030,1757101863113,-542.38,0.0001452,2]
[383727031,1757101863124,-480.0,0.0001452,2]
[383727032,1757101863134,-480.0,0.0001452,2]
[383727033,1757101863143,-480.0,0.0001452,2]
[383727034,1757101863153,-527.83,0.0001452,2]
[383727035,1757101863162,-480.0,0.0001452,2]
[383727036,1757101863172,-480.0,0.0001452,2]
[383727037,1757101863181,-480.0,0.0001452,2]
[383727038,1757101863191,-1106.8,0.0001452,2]
[383727039,1757101863200,-480.0,0.0001452,2]
[383727040,1757101863210,-480.0,0.0001452,2]
[383727041,1757101863220,-480.0,0.0001452,2]
[383727042,1757101863230,-2052.72,0.0001452,2]
[383727043,1757101863239,-480.0,0.0001452,2]
[383727044,1757101863249,-480.0,0.0001452,2]
[383727045,1757101863259,-480.0,0.0001452,2]
[383727046,1757101863269,-794.96,0.0001452,2]
[383727047,1757101863278,-480.0,0.0001452,2]
[383727048,1757101863288,-624.98,0.0001452,2]
[383727049,1757101863298,-480.0,0.0001452,2]
[383727050,1757101863308,-480.0,0.0001452,2]
[383727051,1757101863318,-480.0,0.0001452,2]
[383727052,1757101863328,-480.0,0.0001452,2]
[383727053,1757101863338,-480.0,0.0001452,2]
[383727054,1757101863348,-480.0,0.0001452,2]
[383727055,1757101863358,-3974.31,0.0001452,2]
[383727056,1757101863368,-480.0,0.0001452,2]
[383727057,1757101863377,-480.0,0.0001452,2]
[383727058,1757101863387,-480.0,0.0001452,2]
[383727059,1757101863397,-490.93141517,0.0001452,2]
[383727060,1757101863406,-1444.2,0.0001452,2]
[383727061,1757101863416,-480.0,0.0001452,2]
[383727062,1757101863425,-480.0,0.0001452,2]
[383727063,1757101863435,-970.85,0.0001452,2]
[383727064,1757101863444,-480.0,0.0001452,2]